bitfinex/quotes_SOLUSD_20240902
["timestamp","ask_amount","ask_price","bid_price","bid_amount"]
[1725256509287,20.0,129.85,129.79,26.9663]
[1725256509695,86.26015395,129.84,129.77,15.815]
[1725256509894,27.7023,129.83,129.77,23.5207]
[1725256512699,7.7036,129.81,129.76,7.7063]
[1725256513278,20.0,129.83,129.77,7.7058]
[1725256513479,20.0,129.83,129.78,7.7053]
[1725256513787,27.7024,129.83,129.78,7.7053]
[1725256514382,20.0,129.83,129.79,7.7047]
[1725256514701,20.0,129.83,129.78,7.7052]
[1725256515696,27.7028,129.83,129.78,7.7052]
[1725256515899,0.25098,129.82,129.77,19.2633]
[1725256516109,7.704,129.81,129.76,7.7064]
[1725256516285,27.7041,129.8,129.75,7.707]
[1725256516601,20.0,129.8,129.79,7.7047]
[1725256516792,20.0,129.8,129.76,19.2651]
[1725256516991,20.0,129.81,129.77,7.7059]
[1725256517991,27.7035,129.81,129.77,7.7059]
[1725256518299,20.0,129.81,129.77,7.7059]
[1725256518507,20.0,129.82,129.77,7.7059]
[1725256518804,27.7031,129.82,129.77,7.7059]
[1725256519002,20.0,129.82,129.78,7.7052]
[1725256519380,30.79240225,129.85,129.78,19.2623]
[1725256519580,7.7011,129.86,129.81,7.703]
[1725256520184,7.7012,129.85,129.8,26.9632]
[1725256520384,10.34439729,129.87,129.8,19.2592]
[1725256520385,7.7018,129.84,129.8,19.2592]
[1725256520890,20.0,129.83,129.8,19.2592]
[1725256521690,20.0,129.83,129.78,7.7051]
[1725256521892,20.0,129.86,129.78,7.7051]
[1725256522102,0.25098,129.85,129.78,7.7051]
[1725256522304,31.04338225,129.85,129.77,7.7058]
[1725256522508,20.0,129.84,129.77,7.7058]
[1725256522823,7.703,129.82,129.76,19.2649]
[1725256523212,27.7036,129.81,129.76,26.9709]
[1725256523385,7.7036,129.81,129.76,26.9709]
[1725256524504,7.703,129.82,129.76,26.9709]
[1725256524709,20.0,129.81,129.76,26.9709]
[1725256525088,27.7037,129.81,129.76,19.2649]
[1725256525403,7.7042,129.8,129.76,19.2649]
[1725256525705,27.7036,129.81,129.76,19.2649]
[1725256525895,20.0,129.81,129.76,19.2649]
[1725256526096,27.7021,129.84,129.78,7.7052]
[1725256526302,27.7021,129.84,129.76,19.2649]
[1725256526303,27.7021,129.84,129.79,7.7045]
[1725256526501,20.0,129.84,129.8,7.7036]
[1725256526808,7.7014,129.85,129.79,7.7046]
[1725256527012,27.7017,129.84,129.79,7.7046]
[1725256527206,20.0,129.86,129.78,26.9673]
[1725256527409,7.7025,129.83,129.78,26.9673]
[1725256527703,7.7025,129.83,129.78,19.2621]
[1725256528096,7.7025,129.83,129.77,7.7058]
[1725256528097,23.86169729,129.86,129.75,19.2672]
[1725256528301,45.25098,129.85,129.77,7.7054]
[1725256528500,20.0,129.84,129.77,7.7054]
[1725256528702,7.7024,129.83,129.78,7.7052]
[1725256528904,27.7018,129.84,129.78,7.7052]
[1725256529103,20.0,129.84,129.79,7.7045]
[1725256530013,20.0,129.84,129.8,7.7039]
[1725256530208,22.2716,129.83,129.7,16.5324]
[1725256530407,27.703,129.82,129.75,7.707]
[1725256530897,20.0,129.82,129.76,7.7064]
[1725256531299,22.2716,129.87,129.77,16.5324]
[1725256531606,7.7011,129.86,129.8,7.7039]
[1725256531912,19.2459,129.9,129.8,7.7039]
[1725256533085,20.0,129.89,129.8,7.7039]
[1725256533409,7.7012,129.85,129.8,7.7039]
[1725256533605,20.0,129.84,129.8,7.7039]
[1725256534392,19.2459,129.9,129.8,7.7039]
[1725256534393,27.7007,129.86,129.8,7.7039]
[1725256535001,7.7018,129.84,129.78,52.7047]
[1725256535185,20.0,129.83,129.78,7.7047]
[1725256535388,7.7035,129.82,129.77,35.7961]
[1725256536009,7.7047,129.79,129.74,15.4177]
[1725256536411,20.0,129.78,129.74,15.4177]
[1725256536615,27.7056,129.78,129.74,15.4177]
[1725256537292,27.7056,129.78,129.72,7.7088]
[1725256538303,7.7077,129.74,129.71,15.5682]
[1725256538612,20.0,129.78,129.71,15.5682]
[1725256538613,7.7071,129.75,129.71,15.5682]
[1725256539112,20.0,129.74,129.71,15.5682]
[1725256539616,20.0,129.75,129.71,15.5682]
[1725256540599,27.7072,129.75,129.71,15.5682]
[1725256540799,20.0,129.75,129.71,15.5682]
[1725256541819,27.7073,129.75,129.71,15.5682]
[1725256542193,0.25098,129.74,129.67,23.1015]
[1725256542398,0.25098,129.74,129.68,7.711]
[1725256542629,7.95868,129.74,129.68,7.711]
[1725256543428,7.7072,129.75,129.69,7.7106]
[1725256543717,20.0,129.74,129.7,7.71]
[1725256545716,20.0,129.75,129.69,19.2758]
[1725256545909,20.0,129.76,129.74,7.7074]
[1725256546111,6.2808,129.81,129.7,45.0]
[1725256546112,7.7049,129.79,129.7,45.0]
[1725256546415,27.7054,129.78,129.73,26.978]
[1725256546816,6.2808,129.81,129.73,26.978]
[1725256546817,7.7048,129.79,129.74,7.7076]
[1725256547204,7.7042,129.8,129.75,7.7071]
[1725256548426,20.0,129.79,129.74,7.7076]
[1725256549632,20.0,129.79,129.75,7.7069]
[1725256550423,20.0,129.79,129.76,7.7064]
[1725256550720,13.9843,129.81,129.76,7.7064]
[1725256550721,20.0,129.8,129.76,7.7064]
[1725256551530,20.0,129.81,129.77,7.7057]
[1725256551739,10.27709729,129.85,129.77,19.264]
[1725256551931,17.97869729,129.85,129.8,7.7041]
[1725256552243,7.7007,129.86,129.8,7.7041]
[1725256552426,7.7013,129.85,129.79,26.9656]
[1725256554037,20.0,129.84,129.79,26.9656]
[1725256554434,0.12549,129.83,129.76,26.9721]
[1725256554732,45.25098,129.83,129.76,26.9721]
[1725256554937,20.0,129.82,129.78,7.7051]
[1725256555116,27.7032,129.82,129.76,26.9717]
[1725256555432,27.7032,129.82,129.76,26.9716]
[1725256555433,7.7036,129.81,129.76,26.9716]
[1725256556014,20.0,129.82,129.76,19.2656]
[1725256556220,0.12549,129.84,129.76,26.9716]
[1725256556516,0.25098,129.84,129.76,19.2656]
[1725256557111,0.25098,129.84,129.77,45.0]
[1725256557343,0.25098,129.84,129.8,7.930769]
[1725256558425,7.7024,129.83,129.8,7.930769]
[1725256558626,20.0,129.82,129.8,7.930769]
[1725256560443,7.6999,129.88,129.82,26.9601]
[1725256560943,7.7001,129.87,129.82,26.9601]
[1725256561861,6.4154,129.89,129.8,7.930769]
[1725256561862,7.7023,129.84,129.8,7.930769]
[1725256562151,7.7025,129.83,129.8,7.930769]
[1725256564041,20.0,129.87,129.8,7.930769]
[1725256564242,7.7006,129.86,129.81,7.7034]
[1725256564413,20.0,129.85,129.81,7.7034]
[1725256564615,27.7012,129.85,129.81,7.7034]
[1725256564837,27.7012,129.85,129.8,34.893669]
[1725256565035,7.7019,129.84,129.8,7.930769]
[1725256565254,20.0,129.83,129.8,7.930769]
[1725256567135,27.7024,129.83,129.8,7.930769]
[1725256567640,20.0,129.83,129.8,7.930769]
[1725256569139,27.7024,129.83,129.8,7.930769]
[1725256569822,7.7035,129.81,129.8,7.930769]
[1725256570034,7.703,129.82,129.8,7.930769]
[1725256570433,7.82899,129.81,129.8,7.930769]
[1725256570743,27.82899,129.81,129.8,7.930769]
[1725256571444,27.95448,129.81,129.8,7.930769]
[1725256572541,72.95448,129.81,129.8,7.930769]
[1725256573524,119.88125998,129.81,129.72,7.7088]
[1725256573724,65.12549,129.8,129.72,7.7088]
[1725256573932,24.75576998,129.79,129.72,7.7088]
[1725256574222,27.83129,129.78,129.72,7.7088]
[1725256575040,7.706,129.77,129.72,7.7088]
[1725256575232,27.7066,129.76,129.71,43.3864]
[1725256575548,20.0,129.75,129.71,43.3864]
[1725256575846,12.74101348,129.83,129.71,35.6771]
[1725256576024,65.0,129.81,129.72,45.0]
[1725256576435,7.7051,129.79,129.74,7.7076]
[1725256576637,20.0,129.78,129.74,7.7076]
[1725256577026,20.0,129.78,129.75,7.7071]
[1725256577226,20.0,129.78,129.73,19.2695]
[1725256577227,20.0,129.78,129.74,7.7076]
[1725256578344,20.0,129.78,129.73,19.2695]
[1725256578524,43.88857998,129.82,129.73,19.2695]
[1725256578525,0.12549,129.79,129.73,19.2695]
[1725256578722,7.7064,129.77,129.73,19.2695]
[1725256578953,0.25098,129.76,129.72,7.7086]
[1725256579119,7.95748,129.76,129.71,24.1135]
[1725256579541,0.25098,129.76,129.71,16.4041]
[1725256579840,65.25098,129.77,129.71,16.4041]
[1725256580021,7.709,129.72,129.67,29.2326]
[1725256580230,7.7082,129.74,129.68,7.7107]
[1725256580435,7.7082,129.74,129.69,7.7105]
[1725256580828,20.0,129.73,129.68,19.2773]
[1725256581029,7.7096,129.71,129.65,26.9946]
[1725256581224,0.12549,129.7,129.66,7.7122]
[1725256581964,7.709,129.72,129.67,7.7118]
[1725256582127,20.12549,129.71,129.67,7.7118]
[1725256582328,20.0,129.71,129.68,7.7112]
[1725256582532,13.8071,129.77,129.72,7.7085]
[1725256582833,20.0,129.76,129.72,7.7085]
[1725256583243,6.5208,129.8,129.72,19.2716]
[1725256583456,7.7047,129.79,129.74,7.7076]
[1725256583744,14.225,129.8,129.75,7.7069]
[1725256585153,7.7042,129.8,129.75,7.7069]
[1725256585371,3.86169729,129.82,129.76,7.7062]
[1725256586125,11.56509729,129.82,129.76,7.7062]
[1725256586762,27.95458,129.81,129.76,7.7062]
[1725256587864,20.25098,129.81,129.77,7.7059]
[1725256588048,20.12549,129.81,129.77,7.7059]
[1725256588374,27.82899,129.81,129.76,7.7064]
[1725256590356,20.0,129.81,129.75,19.2673]
[1725256590547,7.7024,129.83,129.78,7.7048]
[1725256590856,20.0,129.82,129.78,7.7048]
[1725256591478,27.703,129.82,129.77,26.9694]
[1725256591643,0.12549,129.81,129.77,26.9694]
[1725256591842,27.703,129.82,129.77,26.9694]
[1725256592548,0.12549,129.81,129.77,26.9694]
[1725256593146,27.703,129.82,129.77,26.9694]
[1725256593347,27.703,129.82,129.78,7.7051]
[1725256594465,20.0,129.82,129.79,19.261]
[1725256594678,27.7017,129.85,129.8,7.7036]
[1725256594857,7.7001,129.87,129.82,7.7029]
[1725256596258,20.0,129.86,129.82,7.7029]
[1725256596855,27.7006,129.86,129.82,7.7029]
[1725256597059,27.7006,129.86,129.81,26.9612]
[1725256597848,7.7012,129.85,129.81,26.9612]
[1725256598156,20.0,129.84,129.81,26.9612]
[1725256598863,20.0,129.85,129.81,26.9612]
[1725256599063,20.0,129.85,129.82,7.7029]
[1725256599382,20.0,129.86,129.82,7.7029]
[1725256599750,7.7015,129.85,129.81,19.2578]
[1725256600079,20.0,129.84,129.81,19.2578]
[1725256600747,20.0,129.84,129.76,61.203]
[1725256600748,20.0,129.84,129.76,22.6708]
[1725256600968,0.12549,129.83,129.78,7.7053]
[1725256601167,7.703,129.82,129.77,7.7057]
[1725256601362,7.704,129.81,129.76,49.6428]
[1725256601753,7.703,129.82,129.77,7.7058]
[1725256601952,20.0,129.81,129.77,7.7058]
[1725256602458,7.703,129.82,129.77,7.7058]
[1725256602984,20.0,129.81,129.77,7.7058]
[1725256604875,7.7059,129.78,129.73,19.2705]
[1725256605073,0.25098,129.8,129.72,24.0033]
[1725256605408,7.7064,129.77,129.72,16.2949]
[1725256605583,45.25098,129.8,129.72,16.2949]
[1725256605584,27.7065,129.76,129.72,16.2949]
[1725256605760,7.7065,129.76,129.72,16.2949]
[1725256606155,7.7059,129.77,129.72,24.0036]
[1725256606377,20.0,129.76,129.72,24.0036]
[1725256606680,20.0,129.76,129.75,7.7071]
[1725256606985,20.12549,129.78,129.74,26.9767]
[1725256607358,20.0,129.78,129.74,26.9767]
[1725256607782,20.0,129.78,129.75,7.7066]
[1725256608078,0.12549,129.8,129.75,7.7066]
[1725256608277,0.25098,129.8,129.74,26.9768]
[1725256608478,7.7067,129.76,129.72,16.2949]
[1725256608659,7.706,129.77,129.72,16.2949]
[1725256609156,7.7054,129.78,129.73,7.7083]
[1725256609359,20.0,129.77,129.73,7.7083]
[1725256610570,20.0,129.77,129.72,16.2949]
[1725256610786,0.25098,129.76,129.7,19.2751]
[1725256611082,0.25098,129.76,129.66,19.2802]
[1725256611083,30.80029845,129.75,129.66,19.2802]
[1725256611452,7.7095,129.71,129.66,19.2802]
[1725256611661,20.0,129.7,129.66,19.2802]
[1725256612456,7.7109,129.69,129.64,16.5389]
[1725256612751,20.25098,129.68,129.64,16.5389]
[1725256612951,20.0,129.68,129.64,24.2524]
[1725256613660,20.0,129.68,129.64,16.5389]
[1725256613861,7.7106,129.69,129.64,24.2525]
[1725256614060,20.0,129.68,129.64,24.2525]
[1725256614780,20.0,129.69,129.65,7.7129]
[1725256616056,20.0,129.69,129.63,26.9989]
[1725256616255,0.12549,129.68,129.63,26.9989]
[1725256616481,7.7119,129.67,129.63,19.2852]
[1725256616682,20.0,129.66,129.63,19.2852]
[1725256618176,20.0,129.66,129.62,7.7147]
[1725256618489,0.12549,129.65,129.61,7.7153]
[1725256618877,20.0,129.66,129.62,7.7148]
[1725256619194,7.7131,129.65,129.6,48.8492]
[1725256619393,27.7125,129.66,129.61,7.7154]
[1725256620992,0.12549,129.65,129.61,7.7154]
[1725256621397,7.96418,129.65,129.6,19.2898]
[1725256621587,20.0,129.64,129.6,19.2898]
[1725256621782,20.0,129.64,129.58,7.7171]
[1725256621987,7.7143,129.63,129.58,7.7171]
[1725256622190,20.0,129.62,129.6,7.7159]
[1725256622380,20.0,129.64,129.6,7.7159]
[1725256622782,27.7126,129.66,129.61,7.7154]
[1725256623282,20.0,129.66,129.62,7.7148]
[1725256623478,0.12549,129.65,129.61,7.7153]
[1725256624593,7.83869,129.65,129.6,7.7159]
[1725256624791,20.0,129.64,129.6,7.7159]
[1725256624999,27.7137,129.64,129.59,27.0072]
[1725256625199,0.12549,129.63,129.59,27.0072]
[1725256626695,27.7137,129.64,129.6,7.7159]
[1725256626893,20.0,129.64,129.6,7.7159]
[1725256627092,27.7136,129.64,129.59,19.2907]
[1725256627402,25.12052332,129.71,129.61,19.2876]
[1725256627607,7.7117,129.68,129.63,7.7142]
[1725256627924,7.7119,129.67,129.63,7.7142]
[1725256628582,20.0,129.66,129.62,7.7146]
[1725256629800,20.0,129.66,129.63,7.7142]
[1725256630186,20.12549,129.67,129.63,7.7142]
[1725256630889,27.83739,129.67,129.63,7.7142]
[1725256631886,20.12549,129.67,129.63,7.7142]
[1725256632594,20.12549,129.67,129.63,19.2845]
[1725256632595,20.0,129.67,129.63,19.2845]
[1725256632780,20.0,129.68,129.63,35.8297]
[1725256632980,20.0,129.68,129.65,7.7129]
[1725256633190,20.0,129.69,129.63,35.8297]
[1725256633403,20.0,129.7,129.63,35.8297]
[1725256634283,7.96168,129.69,129.64,7.7135]
[1725256634494,20.0,129.68,129.64,7.7135]
[1725256634997,27.7112,129.68,129.64,7.7135]
[1725256635206,0.25098,129.67,129.63,43.5439]
[1725256636092,0.25098,129.67,129.63,26.9987]
[1725256636093,7.96288,129.67,129.63,26.9987]
[1725256636288,7.96288,129.67,129.63,19.2845]
[1725256636487,20.0,129.66,129.63,19.2845]
[1725256639628,27.7125,129.66,129.62,7.7147]
[1725256640084,7.7131,129.65,129.6,42.4836]
[1725256640292,20.12549,129.64,129.6,42.4836]
[1725256640508,20.0,129.64,129.61,7.7151]
[1725256640720,20.0,129.64,129.62,7.7147]
[1725256640882,20.0,129.66,129.62,7.7147]
[1725256641286,27.7126,129.66,129.6,42.4835]
[1725256641589,27.7126,129.66,129.6,34.7681]
[1725256642006,27.7126,129.66,129.61,7.7149]
[1725256642709,7.96418,129.65,129.61,7.7149]
[1725256643008,20.0,129.64,129.61,7.7149]
[1725256644114,20.0,129.64,129.61,7.7153]
[1725256644406,20.0,129.64,129.6,42.484]
[1725256645019,27.7137,129.64,129.6,27.0052]
[1725256646614,0.12549,129.63,129.6,27.0052]
[1725256649504,0.12549,129.63,129.59,7.7164]
[1725256649813,20.0,129.64,129.6,7.7158]
[1725256651214,20.0,129.64,129.61,7.7149]
[1725256651423,20.0,129.65,129.57,61.2494]
[1725256651597,7.7111,129.69,129.64,7.7136]
[1725256651800,7.7113,129.68,129.64,7.7136]
[1725256652799,0.12549,129.67,129.64,7.7136]
[1725256653000,20.12549,129.67,129.64,7.7136]
[1725256653713,20.12549,129.67,129.62,27.0003]
[1725256653909,20.12549,129.66,129.62,19.2861]
[1725256654109,0.12549,129.65,129.62,19.2861]
[1725256654306,0.12549,129.66,129.62,19.2861]
[1725256654519,0.25098,129.67,129.62,19.2861]
[1725256654898,7.714,129.64,129.59,27.008]
[1725256655102,20.0,129.63,129.59,27.008]
[1725256655499,20.0,129.63,129.6,7.7159]
[1725256655923,20.0,129.64,129.6,7.7159]
[1725256656702,20.0,129.64,129.62,7.7147]
[1725256656904,20.0,129.66,129.62,7.7147]
[1725256658423,7.83859,129.65,129.61,27.0032]
[1725256658629,20.0,129.64,129.61,27.0032]
[1725256659214,20.0,129.65,129.62,7.7148]
[1725256659416,20.0,129.65,129.64,7.7136]
[1725256660108,20.0,129.65,129.62,7.7142]
[1725256660409,27.712,129.67,129.62,7.7142]
[1725256660826,0.12549,129.66,129.62,7.7142]
[1725256662434,0.25098,129.66,129.62,7.7142]
[1725256663008,0.12549,129.66,129.62,7.7142]
[1725256663508,0.12549,129.66,129.61,19.288]
[1725256663509,0.12549,129.66,129.63,7.7141]
[1725256663717,20.0,129.67,129.63,7.7141]
[1725256664234,7.7125,129.66,129.62,7.7146]
[1725256664532,20.12549,129.65,129.61,27.0033]
[1725256666128,20.12549,129.65,129.62,7.7146]
[1725256666334,20.0,129.65,129.62,7.7146]
[1725256666532,20.0,129.66,129.62,7.7146]
[1725256667837,20.0,129.66,129.61,19.288]
[1725256668018,0.25098,129.65,129.61,19.288]
[1725256668222,20.25098,129.65,129.61,19.288]
[1725256668423,20.25098,129.65,129.6,7.7159]
[1725256669345,7.7138,129.64,129.59,7.7165]
[1725256669544,20.12549,129.63,129.59,7.7165]
[1725256675144,27.83979,129.63,129.58,19.2922]
[1725256675333,27.83979,129.63,129.58,27.0094]
[1725256675334,7.84039,129.62,129.58,27.0094]
[1725256675643,20.12549,129.61,129.57,7.7177]
[1725256676443,27.84089,129.61,129.57,7.7177]
[1725256677316,7.7166,129.59,129.56,3.57921388]
[1725256677523,0.25098,129.58,129.56,3.57921388]
[1725256677722,20.25098,129.58,129.56,3.57921388]
[1725256677947,27.96818,129.58,129.56,3.57921388]
[1725256678315,52.7178,129.57,129.56,3.57921388]
[1725256678520,72.96878,129.57,129.56,3.57921388]
[1725256678826,37.84819669,129.57,129.56,3.57921388]
[1725256679726,30.13039669,129.57,129.56,3.57921388]
[1725256679923,20.25098,129.57,129.56,3.57921388]
[1725256680124,20.12549,129.57,129.56,3.57921388]
[1725256680559,20.12549,129.57,129.54,7.7194]
[1725256680722,0.12549,129.57,129.54,7.7194]
[1725256681440,20.0,129.58,129.55,7.719]
[1725256682146,7.84339,129.57,129.52,27.0215]
[1725256682345,20.0,129.56,129.52,27.0215]
[1725256683049,0.25098,129.55,129.52,19.3012]
[1725256684446,10.13039669,129.55,129.5,0.5]
[1725256684629,7.7202,129.53,129.5,0.5]
[1725256684935,9.87941669,129.51,129.5,0.5]
[1725256685129,30.13039669,129.51,129.5,0.5]
[1725256685921,20.25098,129.51,129.5,0.5]
[1725256686326,27.97238,129.51,129.5,0.5]
[1725256687329,20.25098,129.51,129.5,0.5]
[1725256687541,20.0,129.51,129.5,0.5]
[1725256689550,7.72,129.54,129.5,0.5]
[1725256689758,6.2165,129.56,129.5,0.5]
[1725256690855,20.0,129.55,129.5,0.5]
[1725256691060,0.12549,129.54,129.5,0.5]
[1725256691358,0.12549,129.54,129.51,7.7213]
[1725256692344,0.12549,129.54,129.5,0.5]
[1725256692548,45.12549,129.54,129.5,0.5]
[1725256692857,20.12549,129.53,129.5,0.5]
[1725256693058,0.12549,129.52,129.5,0.5]
[1725256697063,20.0,129.53,129.5,8.2218]
[1725256697265,20.12549,129.54,129.5,8.2218]
[1725256698259,20.0,129.54,129.5,0.5]
[1725256698567,27.7184,129.57,129.52,7.7207]
[1725256698764,7.7184,129.57,129.52,7.7207]
[1725256699743,0.25098,129.56,129.52,7.7207]
[1725256699943,20.0,129.56,129.53,7.7197]
[1725256700144,20.0,129.57,129.53,19.2997]
[1725256700467,3.86169729,129.61,129.53,19.2997]
[1725256700667,3.86169729,129.61,129.55,19.2963]
[1725256701538,7.7171,129.59,129.55,19.2963]
[1725256701949,20.25098,129.58,129.55,19.2963]
[1725256703851,20.25098,129.58,129.55,27.0152]
[1725256704364,20.25098,129.58,129.52,35.119]
[1725256704566,7.96828,129.58,129.52,35.119]
[1725256704745,20.0,129.57,129.53,7.7201]
[1725256704942,0.25098,129.56,129.53,7.7201]
[1725256705166,0.12549,129.56,129.53,7.7201]
[1725256705350,20.0,129.57,129.54,7.7195]
[1725256705953,20.12549,129.58,129.54,7.7195]
[1725256706165,0.12549,129.57,129.54,7.7195]
[1725256706364,0.12549,129.57,129.55,7.7189]
[1725256708962,20.0,129.58,129.55,7.7189]
[1725256709656,20.12549,129.59,129.55,7.7189]
[1725256709855,0.12549,129.58,129.55,7.7189]
[1725256710378,7.7141,129.64,129.59,7.716]
[1725256710553,6.4371,129.66,129.59,35.6395]
[1725256710871,6.4371,129.66,129.61,19.2875]
[1725256711665,20.0,129.65,129.61,19.2875]
[1725256711876,0.25098,129.64,129.61,19.2875]
[1725256712065,27.7135,129.65,129.61,19.2875]
[1725256713384,0.25098,129.64,129.61,19.2875]
[1725256714060,7.7114,129.68,129.63,7.7136]
[1725256714258,7.7101,129.7,129.64,19.2832]
[1725256714562,23.2034,129.71,129.64,19.2832]
[1725256714977,23.2034,129.71,129.65,7.7125]
[1725256715169,7.7103,129.7,129.65,7.7125]
[1725256715783,20.0,129.69,129.65,7.7125]
[1725256716171,20.0,129.69,129.64,26.9967]
[1725256716673,7.7103,129.7,129.64,26.9967]
[1725256716967,0.25098,129.69,129.64,26.9967]
[1725256718077,20.25098,129.69,129.64,26.9967]
[1725256718677,20.25098,129.69,129.64,19.2832]
[1725256718864,20.0,129.68,129.64,19.2832]
[1725256719071,7.96168,129.69,129.64,26.9967]
[1725256719268,20.0,129.68,129.64,26.9967]
[1725256719461,20.0,129.68,129.65,7.713]
[1725256719898,20.25098,129.69,129.65,7.713]
[1725256720380,20.25098,129.69,129.61,6.1814]
[1725256720381,20.25098,129.69,129.61,41.2723]
[1725256720577,7.712,129.67,129.62,7.7148]
[1725256720774,20.12549,129.66,129.62,7.7148]
[1725256720968,20.12549,129.66,129.63,7.7142]
[1725256721499,0.12549,129.66,129.63,7.7142]
[1725256723464,0.12549,129.66,129.61,35.0909]
[1725256723660,0.25098,129.66,129.61,35.0909]
[1725256723865,0.25098,129.66,129.61,15.8028]
[1725256724072,7.7137,129.64,129.61,15.8028]
[1725256724271,20.12549,129.63,129.61,15.8028]
[1725256724570,20.12549,129.63,129.59,7.7161]
[1725256724769,20.12549,129.63,129.6,7.716]
[1725256725507,20.0,129.64,129.6,7.716]
[1725256726760,20.12549,129.65,129.6,7.716]
[1725256727284,7.7137,129.64,129.58,43.2034]
[1725256727588,20.0,129.63,129.59,7.7164]
[1725256727776,0.25098,129.64,129.59,7.7164]
[1725256729286,0.25098,129.64,129.58,16.1937]
[1725256729490,45.25098,129.64,129.58,16.1937]
[1725256729669,20.0,129.63,129.58,16.1937]
[1725256729993,0.25098,129.62,129.58,16.1937]
[1725256730173,7.96598,129.62,129.58,16.1937]
[1725256730374,27.7157,129.61,129.55,34.8334]
[1725256730589,0.25098,129.6,129.55,42.5519]
[1725256735777,0.25098,129.6,129.56,7.7183]
[1725256736787,20.0,129.61,129.57,7.7177]
[1725256737676,27.7159,129.61,129.55,42.5518]
[1725256737998,20.0,129.61,129.55,34.8334]
[1725256739376,20.0,129.61,129.57,7.7178]
[1725256744096,27.7157,129.61,129.56,7.7182]
[1725256744303,7.96708,129.6,129.55,27.0157]
[1725256744497,27.7168,129.59,129.55,19.2968]
[1725256744675,0.12549,129.58,129.55,19.2968]
[1725256744877,20.12549,129.58,129.55,19.2968]
[1725256746082,27.84269,129.58,129.53,7.72]
[1725256746280,27.84269,129.58,129.48,16.52]
[1725256746281,44.8800408,129.58,129.48,16.52]
[1725256746485,7.721,129.52,129.48,16.52]
[1725256746778,0.12549,129.53,129.48,24.243]
[1725256746975,20.25098,129.53,129.48,24.243]
[1725256747370,20.0,129.53,129.51,19.3031]
[1725256747602,20.0,129.56,129.53,7.7202]
[1725256748203,20.0,129.58,129.53,7.7202]
[1725256748396,0.12549,129.57,129.53,7.7202]
[1725256749182,0.12549,129.57,129.52,7.7206]
[1725256749785,0.25098,129.57,129.52,7.7206]
[1725256750193,0.12549,129.57,129.51,19.3031]
[1725256750402,14.2417,129.61,129.53,19.2993]
[1725256750707,7.716,129.6,129.54,7.719]
[1725256751703,7.716,129.6,129.55,7.7188]
[1725256751900,20.12549,129.59,129.55,7.7188]
[1725256753804,20.12549,129.59,129.54,7.7195]
[1725256754008,0.12549,129.58,129.54,7.7195]
[1725256755189,20.12549,129.59,129.54,7.7195]
[1725256755695,20.12549,129.59,129.55,7.7189]
[1725256755892,20.12549,129.59,129.54,7.7194]
[1725256758787,27.84219,129.59,129.54,7.7195]
[1725256759304,20.12549,129.59,129.55,7.7189]
[1725256760788,20.12549,129.59,129.56,7.7178]
[1725256761097,0.12549,129.59,129.55,27.0149]
[1725256761415,7.96758,129.59,129.55,27.0149]